Cogmind - Beta 14 @@@ ROGUE MODE // 2024.10.20 @ 17:03:04 Player: toydarian Result: Self-destructed Performance ------------- Evolutions (2) 1000 Regions Visited (5) 1000 Robots Destroyed (54) 270 Value Destroyed (1150) 1150 Prototype IDs (5) 100 Alien Tech Used (0) 0 Bonus (311) 311 TOTAL SCORE: 3831 Bonus ------- High Alert Combat Kills 11 Aligned with FarCom 300 Cogmind --------- Core Integrity 16/550 Matter 293/300 Energy 100/100 System Corruption 0% Temperature Cool (0) Movement Core (1400) Ox27 Location -8/Materials Parts ------- > --- POWER (1) -------- (None) > --- PROPULSION (3) --- (None) > --- UTILITY (5) ------ Huge Storage Unit Hacking Suite > --- WEAPON (2) ------- Light Assault Rifle Mining Claw > --- INVENTORY (25) --- Titanium Leg Flying Fortress v7 Medium Storage Unit Medium Matter Pod (0) Experimental Sensor Array Peak State ------------ > --- POWER ------------ Light Ion Engine > --- PROPULSION ------- Light Treads Light Treads Light Treads > --- UTILITY ---------- Huge Storage Unit Structural Scanner Experimental Sensor Array Power Shielding Improved Propulsion Shielding > --- WEAPON ----------- Rocket Launcher Rocket Launcher > --- INVENTORY -------- Ion Engine Ion Engine Light Treads Flying Fortress v7 Medium Storage Unit Medium Matter Pod Light Armor Plating Light Armor Plating Assault Rifle Assault Rifle Light Assault Rifle Mining Claw [Rating: 27] Favorites ----------- Power Light Ion Engine Engine Light Ion Engine Propulsion Light Treads Treads Light Treads Leg Titanium Leg Flight Unit Cesium-ion Thruster Utility Huge Storage Unit Device Structural Scanner Storage Huge Storage Unit Processor Signal Interpreter Hackware Hacking Suite Protection Power Shielding Weapon Assault Rifle Energy Gun Small Laser Ballistic Gun Assault Rifle Launcher Rocket Launcher Slashing Weapon Mining Claw Build | -11 -10 -10 -10 -9 -8 ------- Run | Yrd Mat Min Exi Min Mat Slots Evolved 4 | . . . . . 4 Power . | . . . . . . Propulsion 1 | . . . . . 1 Utility 3 | . . . . . 3 Weapon . | . . . . . . Parts Attached 68 | 6 19 6 . 1 36 Power 6 | 1 2 1 . . 2 Engine 6 | 1 2 1 . . 2 Core . | . . . . . . Reactor . | . . . . . . Propulsion 12 | 1 5 . . 1 5 Treads 9 | 1 5 . . 1 2 Leg 1 | . . . . . 1 Wheel . | . . . . . . Hover . | . . . . . . Flight 2 | . . . . . 2 Utility 18 | 1 4 4 . . 9 Device 3 | . . 2 . . 1 Storage 4 | 1 1 1 . . 1 Processor 2 | . 2 . . . . Hackware 1 | . . . . . 1 Protection 8 | . 1 1 . . 6 Artifact . | . . . . . . Weapon 32 | 3 8 1 . . 20 Energy Gun 1 | 1 . . . . . Energy Cannon . | . . . . . . Ballistic Gun 17 | 2 5 . . . 10 Ballistic Cannon . | . . . . . . Launcher 8 | . . 1 . . 7 Special Weapon . | . . . . . . Impact Weapon . | . . . . . . Slashing Weapon 6 | . 3 . . . 3 Piercing Weapon . | . . . . . . Special Melee Weapon . | . . . . . . Unidentified Prototypes 2 | . . 2 . . . Parts Lost 19 | . 1 . . . 18 Power 3 | . 1 . . . 2 Propulsion 6 | . . . . . 6 Utility 5 | . . . . . 5 Weapon 5 | . . . . . 5 Highest Loss Streak 10 | . 1 . . . 10 To Critical Strikes . | . . . . . . Average Slot Usage (%) 90 | . 96 100 100 100 78 Engine 11 | . 13 14 14 14 8 Treads 20 | . 27 28 28 28 9 Flight 1 | . . . . . 2 Device 8 | . . 8 14 14 10 Storage 11 | . 14 14 14 14 9 Processor 2 | . 11 . . . . Hackware 2 | . . . . . 7 Protection 6 | . . 5 . . 12 Ballistic Gun 14 | . 22 15 14 14 10 Launcher 5 | . . 12 14 14 2 Slashing Weapon 3 | . 5 . . . 4 Peak Build Rating 27 | 5 8 17 20 20 27 Average Rating 14 | 4 7 13 18 20 17 On Entrance 11 | . 5 7 17 20 20 Naked Turns . | . . . . . . Heaviest Build 96 | 12 21 94 90 90 96 Greatest Support 60 | 20 40 40 40 40 60 Greatest Overweight (x) 30 | . . 2 2 2 30 Average Overweight (x) 2 | . . 1 2 2 6 Largest Inventory Capacity 25 | 8 10 25 25 25 25 Average Capacity 21 | 7 9 24 25 25 25 Most Carried 19 | 5 10 15 18 19 17 Average Carried 11 | 2 8 13 15 18 10 Final Capacity 25 | 8 10 25 25 25 25 Final Carried 18 | 3 8 14 18 18 8 Class Distribution -------------------- 76% | Mutant 10% | Scavenger-Mutant 5% | Derelict-Skirmisher 4% | Skirmisher Dominant Class ---------------- Mutant | -10/Materials Mutant | -10/Mines Mutant | -10/Exiles Skirmisher | -9/Mines Mutant | -8/Materials Resources | -11 -10 -10 -10 -9 -8 ----------- Run | Yrd Mat Min Exi Min Mat Matter Collected 1511 | 229 585 128 . 10 559 Remotely . | . . . . . . Salvage Created 1072 | . 541 17 . . 514 Parts 96 | . 48 3 . . 45 Haulers Intercepted 3 | . 2 . . . 1 Recyclers Shooed 1 | . 1 . . . . Parts Field Recycled . | . . . . . . Retrieved Matter . | . . . . . . Parts Self-Destructed . | . . . . . . Prevented . | . . . . . . Kills | -11 -10 -10 -10 -9 -8 ------- Run | Yrd Mat Min Exi Min Mat Combat Hostiles Destroyed 30 | . 11 1 . . 18 Melee 2 | . . . . . 2 Guns 15 | . 11 1 . . 3 AOE 13 | . . . . . 13 Classes Destroyed 9 | . 7 . . . 2 Worker 7 | . 1 . . . 6 Builder 8 | . 1 . . . 7 Hauler 3 | . 2 . . . 1 Operator 1 | . 1 . . . . Watcher 5 | . 2 . . . 3 Swarmer 12 | . 3 1 . . 8 Grunt 16 | . 8 . . . 8 Sentry 1 | . . . . . 1 Hunter 1 | . . . . . 1 Best Kill Streak 15 | . 3 1 . . 15 Combat Bots Only 7 | . 3 1 . . 7 Max Kills in Single Turn 6 | . 1 1 . . 6 Gunslinging . | . . . . . . Exploded 4 | . . . . . 4 Melee 1 | . . . . . 1 Uniques/NPCs Destroyed . | . . . . . . Combat | -11 -10 -10 -10 -9 -8 -------- Run | Yrd Mat Min Exi Min Mat Hostile Shots Fired 245 | . 61 1 . . 183 Missed 61 | . 19 . . . 42 Damage Taken 2586 | . 495 6 . . 2085 Core 678 | . 144 . . . 534 Absorbed by Shields . | . . . . . . Redirected to Shielding 153 | . . . . . 153 Core Remaining (%) 71 | 100 . . . 42 . Volleys Fired 109 | . 67 2 . . 40 Largest 2 | . 2 2 . . 2 Hottest 66 | . 40 53 . . 66 Shots Fired 180 | . 111 4 . . 65 Gun 149 | . 111 3 . . 35 Cannon . | . . . . . . Launcher 31 | . . 1 . . 30 Special . | . . . . . . Kinetic 149 | . 111 3 . . 35 Thermal . | . . . . . . Explosive 31 | . . 1 . . 30 Electromagnetic . | . . . . . . Robot Hit Streak 13 | . 13 3 . . 6 Robot Miss Streak 4 | . 4 . . . 2 Penetration Max . | . . . . . . Secondary Targets 2 | . 2 . . . . Max Gunslinging Chain 1 | . 1 . . . . Shots Hit Robots 114 | . 70 1 . . 43 Core Hits 87 | . 29 1 . . 57 Critical Kills 2 | . 2 . . . . Critical Parts Destroyed 1 | . 1 . . . . Critical Strikes 3 | . 3 . . . . Destroy 3 | . 3 . . . . Melee Attacks 39 | . 11 . . . 28 Impact . | . . . . . . Slashing 39 | . 11 . . . 28 Piercing . | . . . . . . Sneak Attacks 6 | . 2 . . . 4 Combat Hostiles . | . . . . . . Follow-up Attacks . | . . . . . . Damage Inflicted 3850 | . 986 13 . . 2851 Guns 1134 | . 876 13 . . 245 Cannons . | . . . . . . Explosions 2171 | . . . . . 2171 Melee 528 | . 100 . . . 428 Ramming 17 | . 10 . . . 7 Kinetic 1134 | . 876 13 . . 245 Thermal 49 | . . . . . 49 Explosive 2122 | . . . . . 2122 Electromagnetic . | . . . . . . Impact . | . . . . . . Slashing 528 | . 100 . . . 428 Piercing . | . . . . . . Highest Corruption . | . . . . . . Average Corruption . | . . . . . . Corruption Purged . | . . . . . . Corruption Blocked . | . . . . . . Overload Shots . | . . . . . . Overflow Damage 106 | . 19 . . . 87 Projectiles . | . . . . . . Explosions 63 | . . . . . 63 Melee 43 | . 19 . . . 24 Knockbacks . | . . . . . . Impact . | . . . . . . Kinetic . | . . . . . . Secondary . | . . . . . . Self-Inflicted Damage 32 | . . . . . 32 Shots 1 | . . . . . 1 Rammed 5 | . 4 . . . 1 Targets Rammed 5 | . 4 . . . 1 Kicked . | . . . . . . Crushed . | . . . . . . Highest Temperature 17 | . 3 6 . . 17 Average Temperature 6 | . 2 4 . . 8 Received Heat Transfer 1266 | . 240 . . . 1026 Siege Activations . | . . . . . . Robots Corrupted . | . . . . . . Combat Hostiles . | . . . . . . Parts Fried . | . . . . . . Impact Corruptions . | . . . . . . Robots Melted . | . . . . . . Combat Hostiles . | . . . . . . Parts Melted . | . . . . . . Heat Transferred 50 | . . . . . 50 Parts Sabotaged . | . . . . . . Parts Stolen . | . . . . . . Parts Stripped . | . . . . . . Power Chain Reactions . | . . . . . . Alert | -11 -10 -10 -10 -9 -8 ------- Run | Yrd Mat Min Exi Min Mat Peak Influence 484 | . 196 39 . . 484 Initial . | . . . . . . Average 89 | . 56 . . . 166 Maximum Alert Level 2 | . . . . . 2 Low Security (%) 85 | 100 100 100 . 100 68 Level 1 10 | . . . . . 22 Level 2 4 | . . . . . 9 Level 3 . | . . . . . . Level 4 . | . . . . . . Level 5 . | . . . . . . High Security . | . . . . . . Max Security . | . . . . . . Squads Dispatched 7 | . 3 . . . 4 Investigation 3 | . 2 . . . 1 Extermination . | . . . . . . Reinforcement 4 | . 1 . . . 3 Assault . | . . . . . . Garrison . | . . . . . . Intercept . | . . . . . . Searches Triggered . | . . . . . . Construction Impeded 1 | . . . . . 1 Haulers Reinforced . | . . . . . . Active Scanning Responses . | . . . . . . Cargo Convoy Interrupts . | . . . . . . Stealth | -11 -10 -10 -10 -9 -8 --------- Run | Yrd Mat Min Exi Min Mat Distress Signals 5 | . 1 . . . 4 Communications Jammed . | . . . . . . Distress Signals . | . . . . . . Times Spotted 51 | . 23 1 . . 27 Peak Tracking Total 6 | . 4 1 . . 6 Tactical Retreats 2 | . 1 . . . 1 Traps | -11 -10 -10 -10 -9 -8 ------- Run | Yrd Mat Min Exi Min Mat Traps Triggered 4 | . 4 . . . . Indirectly . | . . . . . . Trap Hack Attempts . | . . . . . . Triggered . | . . . . . . Disarmed . | . . . . . . Reprogrammed . | . . . . . . Reused . | . . . . . . Traps Extracted . | . . . . . . Installed . | . . . . . . Triggered . | . . . . . . Machines | -11 -10 -10 -10 -9 -8 ---------- Run | Yrd Mat Min Exi Min Mat Machines Disabled 8 | . . . . . 8 Max in Single Turn 2 | . . . . . 2 Machines Repaired . | . . . . . . Machines Dismantled . | . . . . . . Machines Sabotaged . | . . . . . . Overloaded Fab Kills . | . . . . . . Hacking | -11 -10 -10 -10 -9 -8 --------- Run | Yrd Mat Min Exi Min Mat Machines Accessed 8 | . 5 1 . . 2 Terminals 6 | . 5 . . . 1 Fabricators . | . . . . . . Repair Stations 1 | . . . . . 1 Recycling Units . | . . . . . . Scanalyzers . | . . . . . . Garrison Access . | . . . . . . Total Hacks 23 | . 17 1 . . 5 Successful 10 | . 6 1 . . 3 Failed 13 | . 11 . . . 2 Catastrophic 3 | . 3 . . . . Database Lockouts . | . . . . . . Manual 6 | . 5 . 1 . . Terminals 19 | . 17 . . . 2 Fabricators . | . . . . . . Repair Stations 3 | . . . . . 3 Recycling Units . | . . . . . . Scanalyzers . | . . . . . . Garrison Access . | . . . . . . Terminal Hacks 9 | . 6 1 . . 2 Record 1 | . . . . . 1 Prototype ID Bank 1 | . . . . . 1 Open Door 1 | . . 1 . . . Terminal Index 1 | . 1 . . . . Locate Traps 2 | . 2 . . . . Patrol Status 1 | . 1 . . . . Recall Investigation 1 | . 1 . . . . Zone Layout 1 | . 1 . . . . Fabricator Hacks . | . . . . . . Repair Station Hacks 1 | . . . . . 1 Scan Component 1 | . . . . . 1 Recycling Unit Hacks . | . . . . . . Scanalyzer . | . . . . . . Garrison Access Hacks . | . . . . . . Unauthorized Hacks . | . . . . . . Terminals . | . . . . . . Fabricators . | . . . . . . Repair Stations . | . . . . . . Recycling Units . | . . . . . . Scanalyzers . | . . . . . . Garrison Access . | . . . . . . Data Cores Recovered . | . . . . . . Used . | . . . . . . Hacking Detections 7 | . 5 . . . 2 Full Trace Events 3 | . 2 . . . 1 Feedback Events . | . . . . . . Feedback Blocked . | . . . . . . Robot Schematics Acquired . | . . . . . . Robots Built . | . . . . . . Authchips . | . . . . . . Time . | . . . . . . Total Robot Build Rating . | . . . . . . Part Schematics Acquired . | . . . . . . Parts Built . | . . . . . . Authchips . | . . . . . . Time . | . . . . . . Total Part Build Rating . | . . . . . . Parts Repaired . | . . . . . . Time . | . . . . . . Parts Recycled . | . . . . . . Recycled Matter . | . . . . . . Retrieved Matter . | . . . . . . Retrieved Components . | . . . . . . Parts Scanalyzed . | . . . . . . Part Schematics Acquired . | . . . . . . Parts Damaged . | . . . . . . Bothacking | -11 -10 -10 -10 -9 -8 ------------ Run | Yrd Mat Min Exi Min Mat Used RIF Installer . | . . . . . . Robots Hacked . | . . . . . . Non-combat . | . . . . . . Combat . | . . . . . . Robot Hacks Applied . | . . . . . . Relay Couplers Released . | . . . . . . Fabnet Peak Effective % . | . . . . . . Robots Rewired . | . . . . . . Allies Hacked . | . . . . . . Hacks Repelled . | . . . . . . Allies | -11 -10 -10 -10 -9 -8 -------- Run | Yrd Mat Min Exi Min Mat Total Allies . | . . . . . . Largest Group . | . . . . . . Highest-Rated Group . | . . . . . . Highest-Rated Ally . | . . . . . . Total Orders . | . . . . . . Ally Attacks . | . . . . . . Total Damage . | . . . . . . Kills . | . . . . . . Allies Corrupted . | . . . . . . Allies Melted . | . . . . . . Intel | -11 -10 -10 -10 -9 -8 ------- Run | Yrd Mat Min Exi Min Mat Robot Analysis Total . | . . . . . . Derelict Logs Recovered 2 | . . 1 . 1 . Drone Launches . | . . . . . . Drone Recoveries . | . . . . . . Exploration | -11 -10 -10 -10 -9 -8 ------------- Run | Yrd Mat Min Exi Min Mat Turns Passed 8792 | 62 2020 2064 696 301 3649 Spaces Moved 2764 | 37 1083 652 218 94 680 Core 112 | 9 . . . . 103 Treads 2558 | 28 1083 652 218 94 483 Legs 27 | . . . . . 27 Wheels . | . . . . . . Hover . | . . . . . . Flight 67 | . . . . . 67 Fastest Speed 50 | 50 160 160 320 320 240 Average Speed 297 | 133 160 313 320 320 500 Slowest Speed 1550 | 160 160 320 320 320 1550 Overloaded Moves . | . . . . . . Propulsion Burnouts . | . . . . . . Robots Hopped . | . . . . . . Cave-ins Triggered . | . . . . . . Exploration Rate (%) 50 | 3 93 87 61 31 28 Regions Visited 5 Branch Regions 3 Pre-discovered Areas 1 | . . 1 . . . Known Exits Taken 1 | . 1 . . . . Unknown Exits Taken 4 | 1 . 1 1 1 . Scrap Searched 5 | . . 2 . 3 . Spaces Dug 8 | . 5 . . . 3 Terrain Destroyed 190 | . 5 11 . . 174 Melee 8 | . 5 . . . 3 Projectile . | . . . . . . AOE 182 | . . 11 . . 171 Terrain Rammed . | . . . . . . Walls Destroyed . | . . . . . . Machines Disabled . | . . . . . . Actions | -11 -10 -10 -10 -9 -8 --------- Run | Yrd Mat Min Exi Min Mat Total 3064 | 49 1232 668 218 96 801 Wait 31 | . 26 . . . 5 Move 2759 | 36 1082 651 217 93 680 Hop . | . . . . . . Pick Up 40 | 7 17 7 1 1 7 Fast Attach 5 | 1 4 . . . . Attach 28 | 4 5 1 . . 18 Detach 3 | . . 1 . . 2 Swap 35 | 1 10 5 . 1 18 Drop 10 | . 6 1 . 1 2 Fire 109 | . 67 2 . . 40 Melee 39 | . 11 . . . 28 Ram . | . . . . . . Kick . | . . . . . . Crush 5 | . 4 . . . 1 Escape Stasis . | . . . . . . Rewire . | . . . . . . Trap . | . . . . . . Miscellaneous . | . . . . . . Route ------- -11/Scrapyard -10/Materials (discovered 5 exits: *Mat x3 / *Min x2) -10/Mines (discovered 3 exits: *Mat x2 / *Exi) -10/Exiles (discovered 2 exits: [*Min x2]) -9/Mines -8/Materials History --------- Turn | Location | Event 18 | -11/Scrapyard | Discovered new exit (range 16) 63 | -11/Scrapyard | Entered Materials 312 | -10/Materials | Build established: Mutant 334 | -10/Materials | Discovered new exit (range 6) 682 | -10/Materials | Identified exit to Mines 1107 | -10/Materials | Core integrity fell below 50% 1146 | -10/Materials | Discovered new exit (range 5) 1159 | -10/Materials | Identified exit to Materials 1362 | -10/Materials | Discovered exit to Materials (range 16) 1437 | -10/Materials | Build established: Scavenger-Mutant 1515 | -10/Materials | Discovered exit to Mines (range 16) 1830 | -10/Materials | Discovered exit to Materials (range 16) 2083 | -10/Materials | Entered Mines 2089 | -10/Mines | Assembled infested the area 2094 | -10/Mines | Assisted by a Guerilla fighting off Assembled 2206 | -10/Mines | Received a Rocket Launcher from a helpful Derelict 2389 | -10/Mines | Discovered exit to Materials (range 14) 2395 | -10/Mines | Build established: Mutant 2543 | -10/Mines | Found the Drone Emporium 2561 | -10/Mines | Found Prototype Device 2562 | -10/Mines | Identified Thief Drone Bay 2929 | -10/Mines | Found a damaged Exp. Sensor Array with a note attached 2935 | -10/Mines | Found Prototype Device 2936 | -10/Mines | Identified Exp. Sensor Array 3098 | -10/Mines | A weapon hastily lodged in a ceiling crevice suddenly fell to the ground 3165 | -10/Mines | Learned location of Recycling (-7) 3373 | -10/Mines | Deemed a non-threat by the Exiles lab entrance 3501 | -10/Mines | Discovered exit to Materials (range 6) 4135 | -10/Mines | Discovered new exit (range 5) 4147 | -10/Mines | Entered Exiles 4199 | -10/Exiles | Discovered new exit (range 15) 4269 | -10/Exiles | Met 8R-AWN 4320 | -10/Exiles | Met EX-HEX 4413 | -10/Exiles | Met EX-BIN 4458 | -10/Exiles | Aligned with FarCom system 4461 | -10/Exiles | Given EX-Vault access code 4538 | -10/Exiles | Opened EX-Vault 4547 | -10/Exiles | Found Prototype Flight Unit 4612 | -10/Exiles | Warned to stay clear of 0b10 Research branches 4696 | -10/Exiles | Met EX-DEC 4814 | -10/Exiles | Discovered new exit (range 11) 4843 | -10/Exiles | Left Exiles lab with Flying Fortress v7 4843 | -10/Exiles | Entered Mines 4913 | -9/Mines | Met a Derelict bent on vengeance 4949 | -9/Mines | Learned 2 Materials zone layouts 4981 | -9/Mines | Discovered new exit (range 11) 5010 | -9/Mines | Found DCF Scrap (14 items) 5144 | -9/Mines | Entered Materials 5144 | -8/Materials | Evolved 4 slots: Propulsion x1, Utility x3 5772 | -8/Materials | Build established: Derelict-Skirmisher 6008 | -8/Materials | Destroyed 7 combat bots 6249 | -8/Materials | Build established: Mutant 6537 | -8/Materials | Core integrity fell below 50% 6553 | -8/Materials | Lost 10 parts (1p4n2u3w) 8729 | -8/Materials | Core integrity fell below 20% 8771 | -8/Materials | Lost 6 parts (1p2n2u1w) 8793 | -8/Materials | Self-destructed Last Messages --------------- 08679_ Power Shielding destroyed. 08682_ Cesium-ion Thruster destroyed. 08703_ Assault Rifle destroyed. 08704_ G-47 Trooper destroyed. 08708_ K-01 Serf collects debris. 08712_ Acquired 54 matter. 08715_ K-01 Serf collects debris. 08715_ R-06 Scavenger collects Imp. Heat Sink. 08718_ Ion Engine destroyed. 08718_ Critical hit (Burn: +37). 08735_ R-06 Scavenger collects Particle Gun. 08740_ Structural Scanner destroyed. 08740_ R-06 Scavenger collects Aluminum Leg. 08746_ G-47 Trooper destroyed. 08746_ R-06 Scavenger collects Lgt. Nuclear Core. 08752_ K-01 Serf collects debris. 08765_ Acquired 57 matter. 08788_ R-06 Scavenger collects Aluminum Leg. 08791_ K-01 Serf destroyed. 08792_ K-01 Serf collects debris. Map ----- +----------------------------------------------------+ | ########+### ##???############# | | ## # ##???############### | | ## #/ "" ##?????????????????? | | ## # "" ##?????????????????? | | ## # """" ##?????????????????? | | ## # """"" ##?????????????????? | | ## # """ ##?????????????????? | | ## ###########?????????????????? | | ## ###########?????????????????? | | ########/############??????????????????? | | ##### ##??????????????????? | | ???## ##??????????????????? | | ##### ##??? ???????????? | | ########/####### ##?? ##?????????? | | ## [[ ##### # ?? ?????????? | | ## [ ##### # ? # #????????? | | ## # ### # ? #????????? | | ## # ### # ????????? | | # ##### # !! ????????? | | ## # ### # ##?????????? | | ## # ### # ##?????????? | | # # # # ##?????????? | | #########+#### # # ## ????????? | | # # ###### ###+####### ?????? | | # [ # k %!rga ?????? | | # + @ %ggk u ?????? | | # "" # r % ?????? | | # " #### ########+######+##???????? | | # " #### # ## # ???????? | | # # # #####"" ??????????? | | # #### #####?"" # ??????????? | | # #### ##????"" # ??????????? | | # ""T"" #### ##????? ! # ??????????? | | # """"" #### ##??????? # ??????????? | | ############ ##????????? # ??????????? | | ############ ##?????????? # ??????????? | | ??????????## ##?????????? # ??????????? | | ??????????## ##?????????Y###??????????? | | ??????????## ##???????????????????????? | | ?????????? # ##???????????????????????? | | ?# # ###########??????????????? | | ?# # ??????????????? | | ?# """ + ??????????????? | | ?# """ "" # ##########+??????????????? | | ?# """ S"" # # ??????????????? | | ?# "" # # """"" """??????????????? | | ?# # # ""T"" """??????????????? | | ?########### # """??????????????? | | ????# # # ??????????????? | | ????# # ##+########??????????????? | +----------------------------------------------------+ Best States ------------- Heat Dissipation 31 Energy Generation 10 Energy Capacity 250 Matter Stores 300 Matter Capacity 300 Sight Range 16 Robot Scan Range 20 Terrain Scan Density 10 Armor Coverage 150 Power Shielding 33 Propulsion Shielding 66 Evasion (%) 50 Recoil Reduction 3 Offensive Hacking 10 Item Schematics ----------------- None Robot Schematics ------------------ None Fabricated ------------ Nothing Alien Tech Used ----------------- None Achievements -------------- None Challenges ------------ None Game ------ Seed LinearColdRipteeth Manual? 0 Play Time 00:43:16 Cumulative 22.1 hours Start 2024.10.20 @ 14:57:01 End 2024.10.20 @ 17:03:04 Sessions 3 Manual Loads 0 Difficulty Rogue Special Mode None Game No. 19 Rogue 12 Adventurer 0 Explorer 7 Win Type - Total 1 Types 1/0/0/0/0/0/0/0/0 Lore% 11 Gallery% 18 Achievement% 23 Wizard Run 0 Options --------- Layout 0 ASCII 0 Keyboard 0 Movement Mouse Keybinds 0 Fullscreen 1 Font 24/Terminus Map View 76x50 Zoom Use 0% Tactical HUD 1 Map Filters NONE Filters NONE Steam 1 RUN: 959ac2f6-b521-4eed-8849-765665f104d7